fUST/lending_fUST_20260522
["ID","MTS","AMOUNT","RATE_DAILY","PERIOD"]
[422797580,1779411051000,-500.0,0.00010757,2]
[422797575,1779411051000,-955.9622,0.00010757,2]
[422797576,1779411051000,-477.44,0.00010757,2]
[422797608,1779411051000,-500.0,0.0001103,2]
[422797598,1779411051000,-151.0,0.00010807,2]
[422797618,1779411051000,-197.44,0.00011032,2]
[422797647,1779411051000,-502.5,0.00011306,2]
[422797646,1779411051000,-500.0,0.00011306,2]
[422797657,1779411051000,-500.0,0.0001158,2]
[422797649,1779411051000,-500.0,0.00011578,2]
[422797654,1779411051000,-500.0,0.00011579,2]
[422797656,1779411051000,-500.0,0.0001158,2]
[422797650,1779411051000,-577.55,0.00011578,2]
[422797653,1779411051000,-286.44,0.00011579,2]
[422797652,1779411051000,-500.0,0.00011578,2]
[422797655,1779411051000,-218.2,0.00011579,2]
[422797648,1779411051000,-680.9,0.00011507,2]
[422797651,1779411051000,-340.04,0.00011578,2]
[422797658,1779411051000,-500.0,0.0001158,2]
[422797659,1779411051000,-630.21,0.0001158,2]
[422797638,1779411051000,-500.0,0.00011306,2]
[422797660,1779411051000,-548.14,0.0001158,2]
[422797664,1779411051000,-502.5,0.0001158,2]
[422797669,1779411051000,-500.0,0.00011692,2]
[422797666,1779411051000,-495.91069713,0.00011669,2]
[422797671,1779411051000,-500.0,0.00011852,2]
[422797667,1779411051000,-456.6225984,0.00011672,2]
[422797670,1779411051000,-680.9,0.00011781,2]
[422797663,1779411051000,-500.0,0.0001158,2]
[422797668,1779411051000,-325.9692126,0.00011672,2]
[422797662,1779411051000,-2796.17,0.0001158,2]
[422797665,1779411051000,-325.7777244,0.00011628,2]
[422797673,1779411051000,-500.0,0.00011852,2]
[422797672,1779411051000,-577.55,0.00011852,2]
[422797612,1779411051000,-500.0,0.00011031,2]
[422797675,1779411051000,-500.0,0.00011853,2]
[422797661,1779411051000,-500.0,0.0001158,2]
[422797640,1779411051000,-500.0,0.00011306,2]
[422797674,1779411051000,-190.84,0.00011853,2]
[422797641,1779411051000,-630.21,0.00011306,2]
[422797642,1779411051000,-548.14,0.00011306,2]
[422797613,1779411051000,-500.0,0.00011032,2]
[422797609,1779411051000,-500.0,0.0001103,2]
[422797614,1779411051000,-500.0,0.00011032,2]
[422797617,1779411051000,-500.0,0.00011032,2]
[422797616,1779411051000,-208.76,0.00011032,2]
[422797620,1779411051000,-166.08,0.00011032,2]
[422797628,1779411051000,-2910.0,0.00011033,2]
[422797629,1779411051000,-680.9,0.00011233,2]
[422797619,1779411051000,-630.21,0.00011032,2]
[422797630,1779411051000,-500.0,0.00011304,2]
[422797624,1779411051000,-2796.17,0.00011032,2]
[422797622,1779411051000,-500.0,0.00011032,2]
[422797631,1779411051000,-577.55,0.00011304,2]
[422797615,1779411051000,-500.0,0.00011032,2]
[422797623,1779411051000,-500.0,0.00011032,2]
[422797621,1779411051000,-548.14,0.00011032,2]
[422797639,1779411051000,-346.67,0.00011306,2]
[422797636,1779411051000,-500.0,0.00011305,2]
[422797635,1779411051000,-500.0,0.00011305,2]
[422797633,1779411051000,-500.0,0.00011304,2]
[422797637,1779411051000,-500.0,0.00011306,2]
[422797643,1779411051000,-500.0,0.00011306,2]
[422797634,1779411051000,-500.0,0.00011305,2]
[422797632,1779411051000,-500.0,0.00011304,2]
[422797625,1779411051000,-500.0,0.00011032,2]
[422797626,1779411051000,-502.5,0.00011032,2]
[422797627,1779411051000,-823.0,0.00011033,2]
[422797644,1779411051000,-305.34,0.00011306,2]
[422797645,1779411051000,-2796.17,0.00011306,2]
[422797717,1779411052000,-500.167428,0.00012329,2]
[422797713,1779411052000,-500.167428,0.00012329,2]
[422797718,1779411052000,-500.167428,0.00012329,2]
[422797719,1779411052000,-500.167428,0.00012329,2]
[422797706,1779411052000,-500.167428,0.00012329,2]
[422797715,1779411052000,-500.167428,0.00012329,2]
[422797714,1779411052000,-500.167428,0.00012329,2]
[422797712,1779411052000,-500.167428,0.00012329,2]
[422797707,1779411052000,-500.167428,0.00012329,2]
[422797720,1779411052000,-500.167428,0.00012329,2]
[422797705,1779411052000,-500.167428,0.00012329,2]
[422797716,1779411052000,-500.167428,0.00012329,2]
[422797722,1779411052000,-150.98,0.000124,2]
[422797727,1779411052000,-630.21,0.00012401,2]
[422797725,1779411052000,-500.0,0.000124,2]
[422797721,1779411052000,-500.167427,0.00012329,2]
[422797730,1779411052000,-500.0,0.00012401,2]
[422797728,1779411052000,-548.14,0.00012401,2]
[422797724,1779411052000,-577.55,0.000124,2]
[422797723,1779411052000,-500.0,0.000124,2]
[422797729,1779411052000,-500.0,0.00012401,2]
[422797731,1779411052000,-2796.17,0.00012401,2]
[422797726,1779411052000,-500.0,0.00012401,2]
[422797733,1779411052000,-168.77,0.00012432,2]
[422797735,1779411052000,-456.643312,0.00012494,2]
[422797708,1779411052000,-500.167428,0.00012329,2]
[422797742,1779411052000,-630.21,0.00012675,2]
[422797732,1779411052000,-502.5,0.00012401,2]
[422797710,1779411052000,-500.167428,0.00012329,2]
[422797691,1779411052000,-500.0,0.00012126,2]
[422797711,1779411052000,-500.167428,0.00012329,2]
[422797741,1779411052000,-500.0,0.00012675,2]
[422797684,1779411052000,-367.8,0.000119,2]
[422797685,1779411052000,-150.98,0.00012,2]
[422797677,1779411052000,-630.21,0.00011853,2]
[422797683,1779411052000,-502.5,0.00011853,2]
[422797682,1779411052000,-619.79,0.00011853,2]
[422797679,1779411052000,-500.0,0.00011853,2]
[422797681,1779411052000,-2796.17,0.00011853,2]
[422797676,1779411052000,-500.0,0.00011853,2]
[422797680,1779411052000,-500.0,0.00011853,2]
[422797678,1779411052000,-548.14,0.00011853,2]
[422797689,1779411052000,-500.0,0.00012126,2]
[422797686,1779411052000,-886.3,0.00012,6]
[422797690,1779411052000,-577.55,0.00012126,2]
[422797692,1779411052000,-500.0,0.00012127,2]
[422797694,1779411052000,-630.21,0.00012127,2]
[422797693,1779411052000,-213.76,0.00012127,2]
[422797695,1779411052000,-548.14,0.00012127,2]
[422797688,1779411052000,-680.9,0.00012055,2]
[422797696,1779411052000,-500.0,0.00012127,2]
[422797687,1779411052000,-292.0,0.00012055,3]
[422797698,1779411052000,-2796.17,0.00012127,2]
[422797699,1779411052000,-502.5,0.00012127,2]
[422797697,1779411052000,-500.0,0.00012127,2]
[422797701,1779411052000,-680.9,0.00012329,2]
[422797700,1779411052000,-797.0,0.00012136,2]
[422797703,1779411052000,-500.167428,0.00012329,2]
[422797702,1779411052000,-500.167428,0.00012329,2]
[422797704,1779411052000,-500.167428,0.00012329,2]
[422797709,1779411052000,-500.167428,0.00012329,2]
[422797737,1779411052000,-680.9,0.00012603,2]
[422797743,1779411052000,-548.14,0.00012675,2]
[422797739,1779411052000,-577.55,0.00012673,2]
[422797775,1779411052000,-177.0,0.00013277,2]
[422797773,1779411052000,-2796.17,0.00013223,2]
[422797774,1779411052000,-502.5,0.00013223,2]
[422797780,1779411052000,-577.55,0.00013495,2]
[422797779,1779411052000,-680.9,0.00013425,2]
[422797783,1779411052000,-630.21,0.00013497,2]
[422797785,1779411052000,-500.0,0.00013497,2]
[422797782,1779411052000,-500.0,0.00013497,2]
[422797781,1779411052000,-500.0,0.00013495,2]
[422797778,1779411052000,-151.0,0.000134,2]
[422797777,1779411052000,-443.0,0.00013277,2]
[422797776,1779411052000,-185.0,0.00013277,2]
[422797787,1779411052000,-2796.17,0.00013497,2]
[422797771,1779411052000,-500.0,0.00013223,2]
[422797797,1779411052000,-151.0,0.00013699,2]
[422797786,1779411052000,-500.0,0.00013497,2]
[422797793,1779411052000,-180.01980218,0.00013699,2]
[422797790,1779411052000,-152.0,0.00013553,30]
[422797794,1779411052000,-1587.398757,0.00013699,2]
[422797795,1779411052000,-1000.0,0.00013699,2]
[422797792,1779411052000,-680.9,0.00013699,2]
[422797798,1779411052000,-151.0,0.00013699,2]
[422797789,1779411052000,-152.0,0.00013553,30]
[422797791,1779411052000,-561.54593646,0.00013669,2]
[422797796,1779411052000,-151.0,0.00013699,2]
[422797788,1779411052000,-502.5,0.00013497,2]
[422797800,1779411052000,-151.0,0.00013699,2]
[422797736,1779411052000,-151.0,0.000126,2]
[422797799,1779411052000,-151.0,0.00013699,2]
[422797772,1779411052000,-500.0,0.00013223,2]
[422797784,1779411052000,-548.14,0.00013497,2]
[422797769,1779411052000,-630.21,0.00013223,2]
[422797770,1779411052000,-548.14,0.00013223,2]
[422797738,1779411052000,-500.0,0.00012673,2]
[422797744,1779411052000,-500.0,0.00012675,2]
[422797746,1779411052000,-2796.17,0.00012675,2]
[422797740,1779411052000,-500.0,0.00012673,2]
[422797745,1779411052000,-500.0,0.00012675,2]
[422797751,1779411052000,-367.8,0.000129,2]
[422797749,1779411052000,-150.98,0.000128,2]
[422797753,1779411052000,-577.55,0.00012947,2]
[422797758,1779411052000,-500.0,0.00012949,2]
[422797750,1779411052000,-680.9,0.00012877,2]
[422797759,1779411052000,-500.0,0.00012949,2]
[422797752,1779411052000,-633.05,0.00012947,2]
[422797747,1779411052000,-502.5,0.00012675,2]
[422797748,1779411052000,-155.6941659,0.00012739,2]
[422797761,1779411052000,-502.5,0.00012949,2]
[422797757,1779411052000,-548.14,0.00012949,2]
[422797765,1779411052000,-150.98,0.000132,2]
[422797767,1779411052000,-500.0,0.00013221,2]
[422797762,1779411052000,-151.0,0.00013,2]
[422797768,1779411052000,-500.0,0.00013223,2]
[422797766,1779411052000,-577.55,0.00013221,2]
[422797734,1779411052000,-168.77,0.00012434,2]
[422797763,1779411052000,-680.9,0.00013151,2]
[422797760,1779411052000,-2796.17,0.00012949,2]
[422797756,1779411052000,-630.21,0.00012949,2]
[422797754,1779411052000,-500.0,0.00012947,2]
[422797755,1779411052000,-500.0,0.00012949,2]
[422797764,1779411052000,-295.0,0.00013151,3]
[422797843,1779411053000,-500.0,0.00014,7]
[422797852,1779411053000,-500.0,0.00014,7]
[422797844,1779411053000,-500.0,0.00014,7]
[422797846,1779411053000,-500.0,0.00014,7]
[422797839,1779411053000,-500.0,0.00014,7]
[422797840,1779411053000,-500.0,0.00014,7]
[422797850,1779411053000,-500.0,0.00014,7]
[422797834,1779411053000,-500.0,0.00014,7]
[422797832,1779411053000,-500.0,0.00014,7]
[422797833,1779411053000,-500.0,0.00014,7]
[422797842,1779411053000,-500.0,0.00014,7]
[422797849,1779411053000,-500.0,0.00014,7]
[422797831,1779411053000,-500.0,0.00014,7]
[422797862,1779411053000,-500.0,0.00014,7]
[422797841,1779411053000,-500.0,0.00014,7]
[422797847,1779411053000,-500.0,0.00014,7]
[422797848,1779411053000,-500.0,0.00014,7]
[422797845,1779411053000,-500.0,0.00014,7]
[422797853,1779411053000,-500.0,0.00014,7]
[422797856,1779411053000,-500.0,0.00014,7]
[422797859,1779411053000,-500.0,0.00014,7]
[422797855,1779411053000,-500.0,0.00014,7]
[422797858,1779411053000,-500.0,0.00014,7]
[422797857,1779411053000,-500.0,0.00014,7]
[422797854,1779411053000,-500.0,0.00014,7]
[422797861,1779411053000,-500.0,0.00014,7]
[422797864,1779411053000,-500.0,0.00014,7]
[422797835,1779411053000,-500.0,0.00014,7]
[422797851,1779411053000,-500.0,0.00014,7]
[422797830,1779411053000,-500.0,0.00014,7]
[422797804,1779411053000,-160.023403,0.00013699,2]
[422797828,1779411053000,-500.0,0.00014,7]
[422797802,1779411053000,-151.0,0.00013699,2]
[422797863,1779411053000,-500.0,0.00014,7]
[422797803,1779411053000,-151.0,0.00013699,2]
[422797807,1779411053000,-743.3379319,0.00013699,2]
[422797805,1779411053000,-247.77931063,0.00013699,2]
[422797810,1779411053000,-150.98,0.000137,2]
[422797812,1779411053000,-500.0,0.00013769,2]
[422797811,1779411053000,-577.55,0.00013769,2]
[422797801,1779411053000,-151.0,0.00013699,2]
[422797806,1779411053000,-495.55862127,0.00013699,2]
[422797808,1779411053000,-2000.0,0.00013699,7]
[422797809,1779411053000,-1000.0,0.00013699,2]
[422797814,1779411053000,-630.21,0.00013771,2]
[422797824,1779411053000,-500.0,0.00014,7]
[422797829,1779411053000,-500.0,0.00014,7]
[422797813,1779411053000,-173.0185242,0.00013771,2]
[422797817,1779411053000,-500.0,0.00013771,2]
[422797820,1779411053000,-151.0,0.000138,2]
[422797823,1779411053000,-680.9,0.00013973,2]
[422797819,1779411053000,-502.5,0.00013771,2]
[422797816,1779411053000,-500.0,0.00013771,2]
[422797822,1779411053000,-367.8,0.000139,2]
[422797821,1779411053000,-351.792,0.00013833,2]
[422797818,1779411053000,-2796.17,0.00013771,2]
[422797826,1779411053000,-500.0,0.00014,7]
[422797836,1779411053000,-500.0,0.00014,7]
[422797825,1779411053000,-500.0,0.00014,7]
[422797827,1779411053000,-500.0,0.00014,7]
[422797838,1779411053000,-500.0,0.00014,7]
[422797837,1779411053000,-500.0,0.00014,7]
[422797815,1779411053000,-548.14,0.00013771,2]
[422797865,1779411053000,-500.0,0.00014,7]
[422797883,1779411053000,-500.0,0.00014,7]
[422797878,1779411053000,-500.0,0.00014,7]
[422797896,1779411053000,-500.0,0.00014,7]
[422797904,1779411053000,-500.0,0.00014,7]
[422797902,1779411053000,-500.0,0.00014,7]
[422797905,1779411053000,-500.0,0.00014,7]
[422797906,1779411053000,-500.0,0.00014,7]
[422797907,1779411053000,-500.0,0.00014,7]
[422797908,1779411053000,-500.0,0.00014,7]
[422797913,1779411053000,-500.0,0.00014,7]
[422797910,1779411053000,-500.0,0.00014,7]
[422797909,1779411053000,-500.0,0.00014,7]
[422797903,1779411053000,-500.0,0.00014,7]
[422797860,1779411053000,-500.0,0.00014,7]
[422797911,1779411053000,-500.0,0.00014,7]
[422797915,1779411053000,-500.0,0.00014,7]
[422797912,1779411053000,-500.0,0.00014,7]
[422797917,1779411053000,-500.0,0.00014,7]
[422797928,1779411053000,-520.36,0.00014045,2]
[422797927,1779411053000,-548.14,0.00014045,2]
[422797929,1779411053000,-601.48,0.00014045,2]
[422797918,1779411053000,-500.0,0.00014,7]
[422797919,1779411053000,-500.0,0.00014,7]
[422797922,1779411053000,-286.54,0.00014,7]
[422797923,1779411053000,-500.0,0.00014,7]
[422797916,1779411053000,-500.0,0.00014,7]
[422797920,1779411053000,-500.0,0.00014,7]
[422797921,1779411053000,-500.0,0.00014,7]
[422797925,1779411053000,-500.0,0.00014043,2]
[422797924,1779411053000,-577.55,0.00014043,2]
[422797926,1779411053000,-630.21,0.00014045,2]
[422797893,1779411053000,-500.0,0.00014,7]
[422797898,1779411053000,-500.0,0.00014,7]
[422797914,1779411053000,-500.0,0.00014,7]
[422797897,1779411053000,-500.0,0.00014,7]
[422797867,1779411053000,-500.0,0.00014,7]
[422797895,1779411053000,-500.0,0.00014,7]
[422797868,1779411053000,-500.0,0.00014,7]
[422797869,1779411053000,-500.0,0.00014,7]
[422797866,1779411053000,-500.0,0.00014,7]
[422797879,1779411053000,-500.0,0.00014,7]
[422797875,1779411053000,-500.0,0.00014,7]
[422797872,1779411053000,-500.0,0.00014,7]
[422797871,1779411053000,-500.0,0.00014,7]
[422797873,1779411053000,-500.0,0.00014,7]
[422797874,1779411053000,-500.0,0.00014,7]
[422797870,1779411053000,-500.0,0.00014,7]
[422797876,1779411053000,-500.0,0.00014,7]
[422797880,1779411053000,-500.0,0.00014,7]
[422797877,1779411053000,-500.0,0.00014,7]
[422797882,1779411053000,-500.0,0.00014,7]
[422797884,1779411053000,-500.0,0.00014,7]
[422797901,1779411053000,-500.0,0.00014,7]
[422797889,1779411053000,-500.0,0.00014,7]
[422797892,1779411053000,-500.0,0.00014,7]
[422797890,1779411053000,-500.0,0.00014,7]
[422797891,1779411053000,-500.0,0.00014,7]
[422797899,1779411053000,-500.0,0.00014,7]
[422797900,1779411053000,-500.0,0.00014,7]
[422797887,1779411053000,-500.0,0.00014,7]
[422797885,1779411053000,-500.0,0.00014,7]
[422797888,1779411053000,-500.0,0.00014,7]
[422797886,1779411053000,-500.0,0.00014,7]
[422797894,1779411053000,-500.0,0.00014,7]
[422797881,1779411053000,-500.0,0.00014,7]
[422797943,1779411054000,-150.98,0.000145,2]
[422797947,1779411054000,-630.35,0.00014593,2]
[422797946,1779411054000,-413.23788512,0.00014591,2]
[422797948,1779411054000,-548.16,0.00014593,2]
[422797949,1779411054000,-2796.35213313,0.00014593,2]
[422797952,1779411054000,-151.0,0.000146,2]
[422797951,1779411054000,-2000.0,0.00014599,7]
[422797953,1779411054000,-21814.76483939,0.0001468,7]
[422797950,1779411054000,-502.72,0.00014593,2]
[422797955,1779411054000,-680.9,0.00014795,2]
[422797945,1779411054000,-577.55,0.00014591,2]
[422797954,1779411054000,-310.80934204,0.000147,2]
[422797937,1779411054000,-577.55,0.00014317,2]
[422797940,1779411054000,-548.14,0.00014319,2]
[422797936,1779411054000,-680.9,0.00014247,2]
[422797932,1779411054000,-150.98,0.000141,2]
[422797938,1779411054000,-500.0,0.00014317,2]
[422797935,1779411054000,-297.0,0.00014247,3]
[422797942,1779411054000,-502.5,0.00014319,2]
[422797956,1779411054000,-318.78,0.000148,5]
[422797931,1779411054000,-502.5,0.00014045,2]
[422797939,1779411054000,-630.21,0.00014319,2]
[422797934,1779411054000,-151.0,0.000142,2]
[422797930,1779411054000,-2796.17,0.00014045,2]
[422797933,1779411054000,-295.5278351,0.00014166,2]
[422797944,1779411054000,-680.9,0.00014521,2]
[422797960,1779411054000,-367.8,0.000149,2]
[422797941,1779411054000,-2796.17,0.00014319,2]
[422797959,1779411054000,-150.98,0.000149,2]
[422797985,1779411054000,-500.0,8.291e-05,2]
[422797983,1779411054000,-500.0,8.291e-05,2]
[422797986,1779411054000,-493.92787555,0.00015,2]
[422797982,1779411054000,-368.79796179,0.00015,2]
[422797981,1779411054000,-30.67883054,0.00015,2]
[422797980,1779411054000,-500.0,8.292e-05,2]
[422797979,1779411054000,-321338.79266128,0.00015,2]
[422797976,1779411054000,-136960.02432959,0.00015,2]
[422797973,1779411054000,-1102.0,0.00015,2]
[422797977,1779411054000,-1755.0,0.00015,11]
[422797978,1779411054000,-1032.19446034,0.00015,2]
[422797974,1779411054000,-501.0,0.00015,2]
[422797984,1779411054000,-500.0,8.291e-05,2]
[422797971,1779411054000,-8961.548012,0.00015,2]
[422797972,1779411054000,-2694.77,0.00015,3]
[422797970,1779411054000,-2038.451988,0.00015,2]
[422797966,1779411054000,-151.0,0.00014999,2]
[422797964,1779411054000,-291.73684229,0.000149,2]
[422797968,1779411054000,-1278.0,0.00015,2]
[422797962,1779411054000,-291.73684229,0.000149,2]
[422797967,1779411054000,-347455.96198597,0.00015,5]
[422797963,1779411054000,-291.73684229,0.000149,2]
[422797969,1779411054000,-151.0,0.00015,2]
[422797965,1779411054000,-325.9692126,0.00014999,2]
[422797957,1779411054000,-1110.92961674,0.0001485,2]
[422797961,1779411054000,-460.54193617,0.000149,2]
[422797975,1779411054000,-1000.0,0.00015,2]
[422797958,1779411054000,-577.71,0.00014865,2]
[422797989,1779411673000,-1630.94050538,7.875e-05,2]
[422797990,1779411688000,164.617924,3.708e-05,2]
[422798055,1779412231000,-327.59277228,7.906e-05,2]
[422798053,1779412231000,-4613.335,7.827e-05,2]
[422798043,1779412231000,-386.665,7.827e-05,2]
[422798063,1779412232000,-112.92633415,8.286e-05,2]
[422798061,1779412232000,-221.19863324,8.219e-05,2]
[422798059,1779412232000,-1778.80136676,8.219e-05,2]
[422798057,1779412232000,-258.175459,8.048e-05,2]
[422798255,1779412238000,-500.0,8.287e-05,2]
[422798257,1779412238000,-500.0,8.287e-05,2]
[422798259,1779412238000,-535.92,8.287e-05,2]
[422798261,1779412238000,-500.0,8.287e-05,2]
[422798262,1779412238000,-500.0,8.287e-05,2]
[422798264,1779412238000,-500.0,8.287e-05,2]
[422798266,1779412238000,-500.0,8.287e-05,2]
[422798268,1779412238000,-500.0,8.287e-05,2]
[422798281,1779412238000,-500.0,8.287e-05,2]
[422798274,1779412238000,-500.0,8.287e-05,2]
[422798280,1779412238000,-500.0,8.287e-05,2]
[422798278,1779412238000,-500.0,8.287e-05,2]
[422798276,1779412238000,-500.0,8.287e-05,2]
[422798285,1779412238000,-500.0,8.287e-05,2]
[422798283,1779412238000,-500.0,8.287e-05,2]
[422798287,1779412238000,-500.0,8.287e-05,2]
[422798253,1779412238000,-500.0,8.287e-05,2]
[422798270,1779412238000,-500.0,8.287e-05,2]
[422798247,1779412238000,-500.0,8.287e-05,2]
[422798200,1779412238000,-67.11358558,8.287e-05,2]
[422798249,1779412238000,-500.0,8.287e-05,2]
[422798198,1779412238000,-187.07366585,8.286e-05,2]
[422798289,1779412238000,-500.0,8.287e-05,2]
[422798224,1779412238000,-58.89131377,8.287e-05,2]
[422798228,1779412238000,-500.0,8.287e-05,2]
[422798226,1779412238000,-500.0,8.287e-05,2]
[422798230,1779412238000,-500.0,8.287e-05,2]
[422798218,1779412238000,-500.0,8.287e-05,2]
[422798220,1779412238000,-500.0,8.287e-05,2]
[422798245,1779412238000,-500.0,8.287e-05,2]
[422798216,1779412238000,-432.88641442,8.287e-05,2]
[422798232,1779412238000,-500.0,8.287e-05,2]
[422798234,1779412238000,-500.0,8.287e-05,2]
[422798235,1779412238000,-500.0,8.287e-05,2]
[422798237,1779412238000,-500.0,8.287e-05,2]
[422798243,1779412238000,-500.0,8.287e-05,2]
[422798239,1779412238000,-500.0,8.287e-05,2]
[422798241,1779412238000,-500.0,8.287e-05,2]
[422798252,1779412238000,-500.0,8.287e-05,2]
[422798222,1779412238000,-108.8152097,8.287e-05,2]
[422798299,1779412238000,-500.0,8.288e-05,2]
[422798272,1779412238000,-500.0,8.287e-05,2]
[422798293,1779412238000,-500.0,8.287e-05,2]
[422798322,1779412238000,-500.0,8.288e-05,2]
[422798324,1779412238000,-592.05,8.288e-05,2]
[422798329,1779412238000,-500.0,8.288e-05,2]
[422798325,1779412238000,-500.0,8.288e-05,2]
[422798328,1779412238000,-500.0,8.288e-05,2]
[422798326,1779412238000,-500.0,8.288e-05,2]
[422798330,1779412238000,-500.0,8.288e-05,2]
[422798327,1779412238000,-500.0,8.288e-05,2]
[422798323,1779412238000,-500.0,8.288e-05,2]
[422798331,1779412238000,-500.0,8.288e-05,2]
[422798332,1779412238000,-530.93,8.288e-05,2]
[422798336,1779412238000,-500.0,8.288e-05,2]
[422798339,1779412238000,-500.0,8.288e-05,2]
[422798335,1779412238000,-500.0,8.288e-05,2]
[422798337,1779412238000,-500.0,8.288e-05,2]
[422798340,1779412238000,-500.0,8.288e-05,2]
[422798338,1779412238000,-500.0,8.288e-05,2]
[422798301,1779412238000,-551.19,8.288e-05,2]
[422798333,1779412238000,-500.0,8.288e-05,2]
[422798320,1779412238000,-500.0,8.288e-05,2]
[422798334,1779412238000,-593.29,8.288e-05,2]
[422798319,1779412238000,-500.0,8.288e-05,2]
[422798291,1779412238000,-500.0,8.287e-05,2]
[422798321,1779412238000,-500.0,8.288e-05,2]
[422798305,1779412238000,-500.0,8.288e-05,2]
[422798303,1779412238000,-500.0,8.288e-05,2]
[422798306,1779412238000,-554.25,8.288e-05,2]
[422798297,1779412238000,-500.0,8.288e-05,2]
[422798308,1779412238000,-500.0,8.288e-05,2]
[422798307,1779412238000,-560.04,8.288e-05,2]
[422798309,1779412238000,-500.0,8.288e-05,2]
[422798295,1779412238000,-507.22160549,8.287e-05,2]
[422798311,1779412238000,-500.0,8.288e-05,2]
[422798318,1779412238000,-500.0,8.288e-05,2]
[422798312,1779412238000,-500.0,8.288e-05,2]
[422798313,1779412238000,-500.0,8.288e-05,2]
[422798315,1779412238000,-500.0,8.288e-05,2]
[422798314,1779412238000,-500.0,8.288e-05,2]
[422798317,1779412238000,-488.09839267,8.288e-05,2]
[422798310,1779412238000,-500.0,8.288e-05,2]
[422798316,1779412238000,-500.0,8.288e-05,2]
[422798384,1779412239000,-544.48,8.288e-05,2]
[422798385,1779412239000,-500.0,8.288e-05,2]
[422798379,1779412239000,-500.0,8.288e-05,2]
[422798380,1779412239000,-500.0,8.288e-05,2]
[422798382,1779412239000,-500.0,8.288e-05,2]
[422798377,1779412239000,-500.0,8.288e-05,2]
[422798381,1779412239000,-500.0,8.288e-05,2]
[422798378,1779412239000,-500.0,8.288e-05,2]
[422798375,1779412239000,-500.0,8.288e-05,2]
[422798387,1779412239000,-500.0,8.288e-05,2]
[422798376,1779412239000,-500.0,8.288e-05,2]
[422798373,1779412239000,-500.0,8.288e-05,2]
[422798383,1779412239000,-500.0,8.288e-05,2]
[422798386,1779412239000,-500.0,8.288e-05,2]
[422798395,1779412239000,-500.0,8.288e-05,2]
[422798388,1779412239000,-500.0,8.288e-05,2]
[422798389,1779412239000,-500.0,8.288e-05,2]
[422798393,1779412239000,-500.0,8.288e-05,2]
[422798392,1779412239000,-600.61,8.288e-05,2]
[422798394,1779412239000,-500.0,8.288e-05,2]
[422798397,1779412239000,-500.0,8.288e-05,2]
[422798398,1779412239000,-500.0,8.288e-05,2]
[422798391,1779412239000,-521.03,8.288e-05,2]
[422798396,1779412239000,-500.0,8.288e-05,2]
[422798400,1779412239000,-500.0,8.288e-05,2]
[422798399,1779412239000,-500.0,8.288e-05,2]